bitfinex/quotes_SOLUSD_20240711
["timestamp","ask_amount","ask_price","bid_price","bid_amount"]
[1720727110798,7.27079775,138.36,138.31,18.0743]
[1720727110999,7.2283,138.35,138.31,25.3043]
[1720727111519,21.37059775,138.36,138.31,25.3043]
[1720727111694,14.14299775,138.36,138.32,7.2295]
[1720727111894,7.2282,138.35,138.31,32.1743]
[1720727112216,7.2282,138.35,138.31,18.0743]
[1720727113219,7.2286,138.34,138.3,7.2304]
[1720727113419,14.1,138.34,138.29,23.1086]
[1720727113611,21.3286,138.34,138.29,23.1086]
[1720727114012,21.3286,138.34,138.29,37.2086]
[1720727115324,21.3286,138.34,138.3,18.076]
[1720727115325,14.1,138.34,138.3,18.076]
[1720727115517,0.04299775,138.36,138.35,22.9511]
[1720727115726,0.04299775,138.36,138.35,89.033]
[1720727117121,0.8185315,138.42,138.41,7.2249]
[1720727117721,0.8185315,138.42,138.41,45.0]
[1720727117925,0.8185315,138.42,138.41,52.2249]
[1720727118721,0.8185315,138.42,138.41,45.0]
[1720727119110,0.8185315,138.42,138.41,52.2249]
[1720727124520,0.8185315,138.42,138.41,67.8882]
[1720727126337,0.8185315,138.42,138.41,68.0582]
[1720727127439,0.8185315,138.42,138.41,102.3747]
[1720727127637,10.10834865,138.52,138.47,7.2215]
[1720727127944,7.2201,138.51,138.46,7.2219]
[1720727129022,7.2227,138.46,138.42,18.0602]
[1720727129229,16.0713,138.5,138.42,18.0602]
[1720727129441,7.2223,138.46,138.42,25.2844]
[1720727129637,18.0536,138.48,138.38,6.2955]
[1720727129836,7.2233,138.44,138.4,7.2252]
[1720727130138,7.2229,138.45,138.4,7.2252]
[1720727130333,20.0,138.44,138.36,18.0682]
[1720727130538,7.2247,138.42,138.37,7.2266]
[1720727130718,7.2247,138.42,138.38,7.2264]
[1720727131223,7.224,138.43,138.38,7.2264]
[1720727131739,7.2245,138.42,138.37,7.2268]
[1720727131935,7.2245,138.42,138.38,45.0]
[1720727132826,7.2239,138.43,138.38,45.0]
[1720727133033,7.2239,138.43,138.37,45.0]
[1720727133528,7.2245,138.42,138.38,7.2263]
[1720727133728,0.17,138.45,138.34,15.7118]
[1720727133729,61.9335,138.44,138.34,15.7118]
[1720727134046,18.0639,138.4,138.31,6.5606]
[1720727134237,7.2282,138.35,138.31,7.23]
[1720727134422,7.2282,138.35,138.3,7.2305]
[1720727134738,7.2282,138.35,138.31,7.2299]
[1720727134929,7.2276,138.36,138.31,7.2299]
[1720727135126,6.5535,138.39,138.3,7.2305]
[1720727135339,20.17,138.38,138.3,7.2305]
[1720727135724,7.228,138.35,138.31,7.23]
[1720727136454,7.228,138.35,138.3,7.2304]
[1720727137739,7.2276,138.36,138.31,7.2301]
[1720727138455,7.2281,138.35,138.3,7.2305]
[1720727138629,7.2281,138.35,138.31,45.0]
[1720727139255,7.2286,138.34,138.31,45.0]
[1720727139457,7.2281,138.35,138.31,45.0]
[1720727139957,7.2288,138.34,138.31,45.0]
[1720727141548,7.2288,138.34,138.3,7.2305]
[1720727141549,7.2298,138.32,138.27,13.7924]
[1720727141756,7.2302,138.31,138.26,41.5627]
[1720727141928,7.2308,138.3,138.26,34.33]
[1720727142135,7.2308,138.3,138.26,25.3139]
[1720727142344,7.2308,138.3,138.26,18.0812]
[1720727142568,18.0717,138.34,138.26,18.0812]
[1720727142736,7.2306,138.3,138.26,18.0812]
[1720727143353,7.2306,138.3,138.27,45.0]
[1720727145151,28.3,138.35,138.23,22.5854]
[1720727145152,7.2322,138.27,138.23,22.5854]
[1720727145540,7.2322,138.27,138.23,14.8513]
[1720727145737,7.2329,138.26,138.22,18.0867]
[1720727145939,7.2329,138.26,138.22,25.3214]
[1720727146238,18.0773,138.3,138.22,18.0867]
[1720727146437,18.0773,138.3,138.18,6.6302]
[1720727146438,20.17,138.29,138.19,18.0901]
[1720727146634,7.2328,138.26,138.21,7.2351]
[1720727146840,7.2323,138.27,138.22,7.2347]
[1720727147058,20.0,138.26,138.21,18.0881]
[1720727147262,7.2336,138.25,138.21,18.0881]
[1720727147566,20.0,138.26,138.21,25.3233]
[1720727147745,27.2328,138.26,138.22,7.2347]
[1720727147954,27.2328,138.26,138.21,25.3234]
[1720727148463,7.2328,138.26,138.21,25.3234]
[1720727149687,7.2334,138.25,138.22,45.0]
[1720727150375,7.2328,138.26,138.22,45.0]
[1720727150550,7.2323,138.27,138.22,52.2346]
[1720727150754,20.0,138.26,138.22,52.2346]
[1720727151281,27.233,138.26,138.22,45.0]
[1720727151772,27.233,138.26,138.22,52.2347]
[1720727152988,7.233,138.26,138.22,52.2347]
[1720727153281,7.233,138.26,138.22,45.0]
[1720727153798,7.57698328,138.28,138.24,7.2333]
[1720727153966,20.0,138.27,138.24,7.2333]
[1720727154287,20.0,138.27,138.23,25.3194]
[1720727154454,27.2322,138.27,138.24,45.0]
[1720727155064,27.2322,138.27,138.2,28.13]
[1720727155065,20.0,138.27,138.2,28.13]
[1720727155268,20.0,138.28,138.21,45.0]
[1720727156670,7.2333,138.25,138.21,52.235]
[1720727156871,7.2329,138.26,138.22,7.2347]
[1720727157184,20.0,138.28,138.2,35.3655]
[1720727157185,7.2341,138.24,138.2,35.3655]
[1720727157365,20.0,138.28,138.18,22.5824]
[1720727157570,7.235,138.22,138.18,29.8193]
[1720727158178,18.0835,138.25,138.19,7.2364]
[1720727158179,7.2343,138.23,138.19,7.2364]
[1720727158686,7.234,138.24,138.19,7.2364]
[1720727159281,0.17,138.27,138.21,7.235]
[1720727159457,38.0804,138.28,138.21,7.235]
[1720727159987,7.2336,138.25,138.2,7.2356]
[1720727160190,7.2342,138.24,138.21,45.0]
[1720727160486,7.2341,138.24,138.2,52.2357]
[1720727160890,7.2334,138.25,138.2,52.2357]
[1720727161063,38.0804,138.28,138.2,52.2357]
[1720727161381,7.236,138.2,138.18,15.9522]
[1720727161560,7.2355,138.21,138.16,25.3316]
[1720727161761,18.0845,138.24,138.16,25.3316]
[1720727161762,7.2359,138.2,138.16,25.3316]
[1720727162682,7.2354,138.21,138.17,7.2372]
[1720727163064,16.4193,138.25,138.18,52.2366]
[1720727163268,27.2338,138.24,138.19,7.2363]
[1720727163476,27.2338,138.24,138.2,45.0]
[1720727164578,7.235,138.22,138.2,45.0]
[1720727164778,7.235,138.22,138.19,45.0]
[1720727165180,7.2354,138.21,138.19,45.0]
[1720727165374,7.2354,138.21,138.18,45.0]
[1720727165585,7.2354,138.21,138.16,7.2377]
[1720727165886,7.2354,138.21,138.17,7.2373]
[1720727166789,7.235,138.22,138.15,15.7228]
[1720727167089,7.2357,138.21,138.16,45.0]
[1720727167458,7.2357,138.21,138.17,7.2373]
[1720727168174,7.2357,138.21,138.17,25.3305]
[1720727169077,20.0,138.24,138.18,7.2368]
[1720727169280,20.0,138.24,138.21,7.2352]
[1720727169473,7.2334,138.25,138.21,7.2353]
[1720727169672,7.2334,138.25,138.2,7.2357]
[1720727169868,7.2334,138.25,138.21,52.2353]
[1720727170178,7.57732728,138.27,138.21,86.1676]
[1720727170562,7.233,138.26,138.21,86.1676]
[1720727170765,7.57732728,138.27,138.21,78.9327]
[1720727171083,7.2313,138.29,138.24,7.2334]
[1720727171281,7.2319,138.28,138.25,45.0]
[1720727171783,7.2319,138.28,138.24,45.0]
[1720727171986,7.2319,138.28,138.24,52.2336]
[1720727172284,7.2324,138.27,138.24,45.0]
[1720727173276,7.2327,138.26,138.24,45.0]
[1720727173475,7.2327,138.26,138.23,45.0]
[1720727174287,7.2333,138.25,138.22,45.0]
[1720727174588,7.2329,138.26,138.22,45.0]
[1720727174887,28.13,138.26,138.16,6.5797]
[1720727175069,18.0861,138.23,138.14,18.0967]
[1720727175270,7.237,138.18,138.13,29.6442]
[1720727175586,7.2365,138.19,138.14,7.2389]
[1720727175888,7.2368,138.19,138.14,7.2389]
[1720727176187,7.2372,138.18,138.13,47.7428]
[1720727176483,7.2372,138.18,138.14,7.239]
[1720727176883,7.2372,138.18,138.13,47.7429]
[1720727177187,7.2375,138.17,138.13,40.5034]
[1720727178390,7.2381,138.16,138.12,7.2399]
[1720727178880,7.2381,138.16,138.11,7.2403]
[1720727179187,7.2385,138.15,138.11,7.2405]
[1720727180293,28.13,138.12,138.08,0.8185315]
[1720727180585,28.13,138.12,138.0,21.8651]
[1720727180586,20.0,138.11,138.0,21.8651]
[1720727180773,7.2427,138.07,138.02,7.2448]
[1720727181172,7.2428,138.07,138.0,21.8651]
[1720727181374,7.2422,138.08,138.02,7.2451]
[1720727181775,7.2428,138.07,138.02,7.2451]
[1720727183588,0.34,138.1,138.0,21.8651]
[1720727183890,7.2443,138.04,138.0,21.8651]
[1720727184073,18.105,138.09,138.0,21.8651]
[1720727184279,7.2446,138.04,138.0,21.8651]
[1720727185382,7.2446,138.04,138.0,29.1114]
[1720727185582,7.2446,138.04,138.01,45.0]
[1720727186806,7.2448,138.03,138.01,45.0]
[1720727187893,7.2453,138.02,138.01,45.0]
[1720727188079,7.2453,138.02,138.0,21.8651]
[1720727188287,7.2458,138.01,137.97,22.4914]
[1720727188603,7.2458,138.01,137.98,45.0]
[1720727188779,7.2453,138.02,137.98,45.0]
[1720727188980,7.2461,138.01,137.97,22.4914]
[1720727189304,18.1101,138.05,137.97,22.4914]
[1720727189493,7.247,137.99,137.97,22.4914]
[1720727190290,7.247,137.99,137.97,16.1971]
[1720727190479,7.2474,137.98,137.97,16.1971]
[1720727190997,7.2474,137.98,137.94,30.2477315]
[1720727191406,7.2474,137.98,137.94,22.9984315]
[1720727191586,7.2474,137.98,137.94,30.2478315]
[1720727192589,7.247,137.99,137.95,7.2489]
[1720727193114,7.247,137.99,137.94,30.2478315]
[1720727193411,7.2474,137.98,137.95,45.0]
[1720727193612,7.247,137.99,137.95,45.0]
[1720727195006,7.2465,138.0,137.95,45.0]
[1720727195310,7.2455,138.02,137.98,7.2473]
[1720727195486,7.59064861,138.04,138.01,7.2458]
[1720727195789,31.7457052,138.09,138.02,45.0]
[1720727196389,7.2443,138.04,138.02,45.0]
[1720727196603,7.2443,138.04,138.01,45.0]
[1720727196807,7.2433,138.06,138.01,52.2454]
[1720727197109,7.2428,138.07,138.01,45.0]
[1720727197488,7.2428,138.07,138.02,7.2451]
[1720727197813,7.2428,138.07,138.03,45.0]
[1720727197999,7.2432,138.06,138.03,45.0]
[1720727198206,7.2428,138.07,138.03,45.0]
[1720727200005,7.2432,138.06,138.03,45.0]
[1720727200317,7.2432,138.06,138.02,45.0]
[1720727201412,18.1057,138.08,138.0,22.8014]
[1720727201618,7.2449,138.03,138.0,22.8014]
[1720727202613,7.2444,138.04,138.0,30.0477]
[1720727203119,7.2444,138.04,138.01,45.0]
[1720727203806,7.2439,138.05,138.01,52.2456]
[1720727204008,7.2434,138.06,138.02,7.2452]
[1720727204201,7.5873052,138.09,138.01,45.0]
[1720727204202,20.0,138.08,138.03,45.0]
[1720727204507,20.0,138.08,138.04,7.2441]
[1720727204508,27.2422,138.08,138.04,7.2441]
[1720727204812,27.2422,138.08,138.05,45.0]
[1720727204999,20.0,138.08,138.05,45.0]
[1720727205509,18.1004,138.12,138.04,45.0]
[1720727205510,20.0,138.11,138.04,45.0]
[1720727206508,7.243,138.07,138.04,45.0]
[1720727207421,7.2422,138.08,138.04,52.2441]
[1720727207716,7.2422,138.08,138.04,45.0]
[1720727207919,7.2427,138.07,138.04,45.0]
[1720727209604,7.2433,138.06,138.0,22.8014]
[1720727210800,7.2433,138.06,138.02,7.2449]
[1720727211120,7.2428,138.07,138.03,45.0]
[1720727211300,7.2433,138.06,138.03,45.0]
[1720727213311,7.2428,138.07,138.03,45.0]
[1720727213504,7.2428,138.07,138.03,52.2446]
[1720727214830,7.2433,138.06,138.03,45.0]
[1720727216028,7.2429,138.07,138.03,45.0]
[1720727217720,7.2429,138.07,138.03,52.2447]
[1720727219616,7.2433,138.06,138.03,45.0]
[1720727219921,7.2438,138.05,138.03,45.0]
[1720727220232,7.2449,138.03,138.0,22.8014]
[1720727220525,7.2445,138.04,138.0,30.0476]
[1720727221114,7.2445,138.04,138.0,22.8014]
[1720727221729,7.2449,138.03,138.0,22.8014]
[1720727222234,18.1085,138.06,137.98,6.1308]
[1720727222406,7.2456,138.02,137.98,6.1308]
[1720727222607,7.2456,138.02,137.98,13.3781]
[1720727222808,7.245,138.03,137.99,7.2468]
[1720727223208,7.245,138.03,137.98,13.378]
[1720727223622,18.1085,138.06,137.99,52.2468]
[1720727223829,7.2444,138.04,137.99,52.2468]
[1720727224033,20.0,138.03,137.99,52.2468]
[1720727224325,27.2448,138.03,137.99,52.2468]
[1720727225719,21.0680711,138.09,137.99,45.0]
[1720727225923,18.1047,138.09,137.99,45.0]
[1720727226123,7.243,138.07,138.03,7.2447]
[1720727226419,7.2412,138.1,138.01,15.9386]
[1720727226622,7.2419,138.09,138.04,7.244]
[1720727226816,7.2422,138.08,138.05,45.0]
[1720727227021,7.2432,138.06,138.05,45.0]
[1720727227211,7.2427,138.07,138.05,45.0]
[1720727227423,7.2427,138.07,138.04,45.0]
[1720727228325,7.2432,138.06,138.04,45.0]
[1720727228513,7.2432,138.06,138.03,45.0]
[1720727228923,7.2442,138.04,138.02,6.4985]
[1720727229124,7.2439,138.05,138.02,6.4985]
[1720727229437,7.2444,138.04,138.01,15.9386]
[1720727229626,7.2439,138.05,138.01,15.9386]
[1720727230009,7.2439,138.05,138.01,23.1843]
[1720727230416,7.2431,138.07,138.02,7.2448]
[1720727230624,20.0,138.06,138.03,45.0]
[1720727230826,37.42251031,138.13,138.03,45.0]
[1720727231023,19.32301031,138.13,138.03,7.2446]
[1720727231327,7.2433,138.06,138.02,52.2451]
[1720727232511,7.244,138.05,138.01,23.1842]
[1720727232712,7.2433,138.06,138.02,7.2453]
[1720727232919,7.2429,138.07,138.03,45.0]
[1720727233534,7.2432,138.06,138.03,45.0]
[1720727234926,25.18754099,138.12,138.03,52.2447]
[1720727235121,20.34,138.11,138.03,45.0]
[1720727235320,20.34,138.11,138.02,45.0]
[1720727235536,7.2424,138.08,138.04,7.2439]
[1720727235717,20.0,138.07,138.04,7.2439]
[1720727236729,25.18754099,138.12,138.05,7.2432]
[1720727237033,7.2417,138.09,138.05,7.2432]
[1720727237222,20.0,138.08,138.05,7.2432]
[1720727237428,20.0,138.08,138.04,13.6594]
[1720727237635,20.0,138.08,138.05,52.2437]
[1720727237822,20.0,138.08,138.05,45.0]
[1720727238036,27.2423,138.08,138.05,45.0]
[1720727238234,7.2427,138.07,138.05,45.0]
[1720727238941,7.2433,138.06,138.04,6.4154]
[1720727239152,7.2428,138.07,138.04,6.4154]
[1720727239321,27.2423,138.08,138.05,45.0]
[1720727239630,7.2429,138.07,138.04,6.4154]
[1720727240153,27.2424,138.08,138.05,45.0]
[1720727240549,7.2427,138.07,138.05,45.0]
[1720727241229,7.2432,138.06,138.04,6.4154]
[1720727241438,7.2432,138.06,138.02,7.2451]
[1720727241748,7.2432,138.06,138.03,45.0]
[1720727243050,27.2423,138.08,138.04,7.2442]
[1720727243462,27.2424,138.08,138.05,45.0]
[1720727243742,27.2424,138.08,138.04,7.244]
[1720727243743,7.2427,138.07,138.03,7.2446]
[1720727244244,7.242,138.09,138.05,7.2435]
[1720727244428,20.0,138.08,138.05,7.2435]
[1720727244630,18.1015,138.11,138.06,52.2429]
[1720727244631,7.241,138.11,138.06,52.2429]
[1720727244829,20.0,138.1,138.06,52.2429]
[1720727245030,27.2411,138.1,138.06,52.2429]
[1720727245438,7.2417,138.09,138.06,45.0]
[1720727246648,20.0,138.1,138.06,52.243]
[1720727246649,27.2411,138.1,138.06,52.243]
[1720727247345,27.2411,138.1,138.06,45.0]
[1720727248351,7.2417,138.09,138.06,45.0]
[1720727249142,20.0,138.1,138.06,45.0]
[1720727249346,7.58566997,138.12,138.11,7.2406]
[1720727249651,7.2394,138.14,138.09,7.2415]
[1720727249832,7.2394,138.14,138.1,45.0]
[1720727250176,25.17914099,138.18,138.1,52.2408]
[1720727250354,7.2391,138.14,138.1,52.2408]
[1720727250954,7.2397,138.13,138.1,45.0]
[1720727251446,7.2396,138.13,138.1,45.0]
[1720727251634,7.2396,138.13,138.09,52.2415]
[1720727251834,7.2403,138.12,138.09,45.0]
[1720727252049,7.2397,138.13,138.09,45.0]
[1720727252248,7.239,138.14,138.09,45.0]
[1720727252549,7.238,138.16,138.08,45.0]
[1720727252732,7.238,138.16,138.09,0.34]
[1720727253339,7.2386,138.15,138.11,7.2404]
[1720727253550,10.06863402,138.18,138.12,45.0]
[1720727254052,10.06863402,138.18,138.11,45.0]
[1720727254230,7.2386,138.15,138.11,45.0]
[1720727255357,7.239,138.14,138.11,45.0]
[1720727255537,20.0,138.17,138.07,21.3985]
[1720727255739,23.80433573,138.19,138.11,15.0304]
[1720727255740,7.58253573,138.19,138.11,15.0304]
[1720727255939,15.3713,138.24,138.19,7.2362]
[1720727255940,7.2341,138.24,138.19,7.2362]
[1720727256329,7.2343,138.23,138.18,7.2368]
[1720727257035,7.2343,138.23,138.19,52.2362]
[1720727258342,7.2348,138.22,138.17,22.2673]
[1720727258541,7.2348,138.22,138.18,52.2369]
[1720727258750,7.2344,138.23,138.18,52.2369]
[1720727260245,7.2344,138.23,138.19,7.2362]
[1720727260446,7.2338,138.24,138.19,7.2362]
[1720727260641,20.0,138.23,138.19,7.2362]
[1720727262176,20.0,138.23,138.2,0.40873719]
[1720727262544,20.0,138.23,138.19,7.2362]
[1720727263050,20.0,138.23,138.2,7.2357]
[1720727263260,20.0,138.23,138.21,45.0]
[1720727263664,7.2333,138.25,138.21,52.2351]
[1720727263861,20.0,138.24,138.21,52.2351]
[1720727264050,7.2333,138.25,138.21,52.2351]
[1720727264370,7.2329,138.26,138.21,52.2351]
[1720727264578,7.2329,138.26,138.22,8.6793994]
[1720727265365,7.57764665,138.27,138.21,52.2352]
[1720727265573,20.0,138.26,138.21,52.2352]
[1720727265867,21.03706447,138.3,138.21,52.2352]
[1720727265868,20.0,138.29,138.21,52.2352]
[1720727266652,18.4195,138.28,138.17,15.0304]
[1720727267173,20.0,138.27,138.17,15.0304]
[1720727267375,0.17,138.26,138.17,15.0304]
[1720727267573,0.34,138.26,138.17,15.0304]
[1720727267762,7.2343,138.23,138.19,7.2362]
[1720727267966,7.2343,138.23,138.2,45.0]
[1720727268167,0.34,138.26,138.2,45.0]
[1720727271950,0.34,138.26,138.19,7.2362]
[1720727273150,0.34,138.26,138.17,15.0304]
[1720727273463,21.5288,138.25,138.12,22.7659]
[1720727273663,28.28,138.22,138.12,22.7659]
[1720727273864,0.17,138.21,138.13,7.2392]
[1720727274049,20.34,138.21,138.12,22.7659]
[1720727274248,20.34,138.21,138.08,72.8059]
[1720727274450,20.34,138.21,138.13,7.2393]
[1720727274851,20.34,138.21,138.08,72.8059]
[1720727275058,20.34,138.21,138.13,7.2392]
[1720727275960,21.4895,138.2,138.08,22.7659]
[1720727276275,21.4895,138.2,138.05,7.2436]
[1720727276276,28.28,138.17,138.05,7.2436]
[1720727276475,0.17,138.16,138.05,7.2436]
[1720727276682,65.34,138.16,138.04,29.4129]
[1720727276861,6.0507,138.15,138.04,7.2441]
[1720727277180,65.34,138.14,138.04,7.2441]
[1720727277558,65.34,138.14,138.05,45.0]
[1720727277981,65.34,138.14,138.0,57.6946]
[1720727277982,15.8205,138.13,138.0,57.6946]
[1720727278179,165.17,138.12,138.0,22.1688]
[1720727278383,165.17,138.12,137.97,28.28]
[1720727278384,28.45,138.11,137.97,7.2477]
[1720727278573,65.17,138.1,137.98,7.2473]
[1720727278955,0.17,138.09,137.98,7.2473]
[1720727279287,6.427,138.08,137.97,7.2478]
[1720727279462,20.17,138.07,137.97,7.2478]
[1720727279663,20.34,138.07,137.97,7.2478]
[1720727280973,7.2459,138.01,137.96,22.9543]
[1720727281185,7.2472,137.99,137.93,22.7937]
[1720727281483,7.2472,137.99,137.94,8.0679315]
[1720727281784,7.2472,137.99,137.95,7.2489]
[1720727281958,28.28,138.05,137.94,0.8185315]
[1720727282164,7.2462,138.01,137.96,7.2483]
[1720727282482,20.17,138.04,137.94,0.8185315]
[1720727282483,27.2466,138.0,137.94,0.8185315]
[1720727282782,27.2466,138.0,137.97,45.0]
[1720727283074,20.0,138.0,137.97,45.0]
[1720727283273,20.0,138.0,137.96,45.0]
[1720727284580,20.0,138.0,137.96,52.2484]
[1720727285254,27.2464,138.0,137.96,45.0]
[1720727286378,7.2475,137.98,137.96,45.0]
[1720727286674,7.2479,137.97,137.96,45.0]
[1720727286867,7.2475,137.98,137.96,45.0]
[1720727287274,7.247,137.99,137.95,45.0]
[1720727288993,7.247,137.99,137.95,52.2489]
[1720727289160,7.247,137.99,137.95,45.0]
[1720727289484,7.247,137.99,137.94,45.8185315]
[1720727290380,7.247,137.99,137.95,7.2489]
[1720727290578,20.0,138.0,137.96,45.0]
[1720727290888,20.0,138.03,137.96,45.0]
[1720727291088,0.17,138.02,137.95,45.0]
[1720727291660,7.2469,137.99,137.95,45.0]
[1720727292154,7.2463,138.01,137.96,7.2484]
[1720727292360,7.247,137.99,137.94,8.0678315]
[1720727292657,7.247,137.99,137.95,7.2489]
[1720727293665,7.247,137.99,137.96,45.0]
[1720727294261,20.0,138.03,137.96,52.2481]
[1720727294577,20.0,138.03,137.96,45.0]
[1720727295761,7.2464,138.0,137.96,45.0]
[1720727296158,7.2469,137.99,137.96,45.0]
[1720727296568,7.2469,137.99,137.95,45.0]
[1720727297287,7.2464,138.0,137.95,52.2487]
[1720727297473,27.590116,138.03,137.95,45.0]
[1720727297673,7.2464,138.0,137.94,45.8185315]
[1720727297983,7.2464,138.0,137.95,7.2486]
[1720727298170,7.2469,137.99,137.96,45.0]
[1720727298579,7.2469,137.99,137.95,45.0]
[1720727298778,7.2478,137.98,137.95,45.0]
[1720727298961,7.2478,137.98,137.94,45.8185315]
[1720727299164,18.1139,138.02,137.94,45.8185315]
[1720727299363,7.2474,137.98,137.94,45.8185315]
[1720727300686,7.247,137.99,137.94,53.0680315]
[1720727301390,27.590116,138.03,137.96,7.248]
[1720727301591,7.2466,138.0,137.95,7.2488]
[1720727301887,7.2469,137.99,137.96,45.0]
[1720727302083,0.17,138.02,137.96,45.0]
[1720727302270,7.2482,137.97,137.95,45.0]
[1720727302472,18.1155,138.01,137.94,0.8185315]
[1720727302672,7.2484,137.97,137.94,0.8185315]
[1720727303066,7.2487,137.96,137.94,0.8185315]
[1720727303278,7.249,137.95,137.94,0.8185315]
[1720727303988,7.2486,137.96,137.94,0.8185315]
[1720727304378,10.55538558,138.03,137.94,0.8185315]
[1720727304581,7.2453,138.02,137.95,15.5724]
[1720727304778,7.2449,138.03,137.98,7.2472]
[1720727304982,22.6302,138.05,137.99,7.2466]
[1720727305194,19.07671422,138.05,137.99,45.0]
[1720727305386,19.07671422,138.05,137.98,52.2473]
[1720727305590,16.1226,138.05,137.98,45.0]
[1720727305795,7.2454,138.02,137.98,45.0]
[1720727306094,7.2454,138.02,137.98,52.2473]
[1720727306389,7.2454,138.02,137.98,45.0]
[1720727306593,7.2458,138.01,137.98,45.0]
[1720727307591,18.111,138.04,137.95,21.7883]
[1720727307770,20.34,138.03,137.95,21.7883]
[1720727308387,7.2464,138.0,137.95,29.0369]
[1720727308898,7.246,138.01,137.97,7.2478]
[1720727309197,7.246,138.01,137.98,45.0]
[1720727309488,7.246,138.01,137.97,45.0]
[1720727309687,7.2464,138.0,137.97,45.0]
[1720727309894,7.2464,138.0,137.96,45.0]
[1720727310493,20.0,138.03,137.96,45.0]
[1720727310701,20.0,138.04,137.96,45.0]
[1720727311003,7.2453,138.02,137.97,7.2477]
[1720727311299,7.2453,138.02,137.98,45.0]
[1720727311605,20.0,138.04,137.98,45.0]
[1720727311805,7.2459,138.01,137.98,45.0]
[1720727312387,7.2459,138.01,137.97,45.0]
[1720727312594,7.2466,138.0,137.97,45.0]
[1720727313595,7.2466,138.0,137.96,45.0]
[1720727313804,7.2466,138.0,137.96,52.2484]
[1720727314578,18.1126,138.03,137.96,45.0]
[1720727314803,7.247,137.99,137.96,45.0]
[1720727314993,7.2465,138.0,137.96,45.0]
[1720727317310,7.2465,138.0,137.96,52.2484]
[1720727317907,7.2458,138.01,137.96,45.0]
[1720727318076,7.2458,138.01,137.96,52.2483]
[1720727318277,18.1134,138.02,137.95,15.4024]
[1720727318478,7.2477,137.98,137.94,0.8185315]
[1720727319979,14.16,137.99,137.94,0.8185315]
[1720727319980,21.407,137.99,137.94,53.0677315]
[1720727320186,14.16,137.99,137.96,7.2481]
[1720727320401,14.16,137.99,137.94,59.9785315]
[1720727320604,7.2474,137.98,137.94,45.8185315]
[1720727321387,7.2474,137.98,137.94,53.0679315]
[1720727321708,7.2474,137.98,137.94,67.2279315]
[1720727321889,21.4071,137.99,137.94,67.2279315]
[1720727322207,14.16,137.99,137.94,45.8185315]
[1720727322602,7.2483,137.97,137.94,45.8185315]
[1720727322802,7.2483,137.97,137.94,0.8185315]
[1720727323822,21.4083,137.97,137.94,0.8185315]
[1720727323998,7.2485,137.96,137.94,0.8185315]
[1720727324313,21.4085,137.96,137.94,0.8185315]
[1720727324475,7.2485,137.96,137.94,0.8185315]
[1720727324681,21.4081,137.97,137.94,0.8185315]
[1720727325696,7.2488,137.96,137.94,0.8185315]
[1720727325901,20.0,137.95,137.94,0.8185315]
[1720727326194,14.16,137.95,137.94,0.8185315]
[1720727326416,34.16,137.95,137.94,0.8185315]